{"text_format":"1","workbook":"xlsx","n_sheets":1,"sheets":["Лист1"],"not_rendered":{"charts":0,"images":0,"macros":1,"external_links":0,"defined_names":0,"comments":0,"pivot_tables":0},"unopened":[],"bounds":{"document_bytes":16777216,"sheet_cells":100000,"rows_first":2000,"rows_last":500,"rows_between":2000,"halvings":0,"cell_chars":16384,"cell_head_chars":4096},"cells_cut":0,"cells_raw":0,"read":"whole","date_system":"1900"}

{"sheet":"Лист1","index":0,"n_rows":41,"n_cols":21,"rows_kept":41,"cut":false,"hidden":false,"merged":[[0,10,1,10],[0,9,1,9],[0,0,1,0],[0,6,1,6],[0,4,0,5],[0,7,1,7],[0,3,1,3],[0,8,1,8]]}
["дата","№ договора","пломба","адрес хранения \"К\"","срок хранения",null,"статус","оповещение","дата оповещения","НА ХРАНЕНИИ",{"$f":"COUNTIF(G:G,U2)","v":10},null,null,null,null,null,null,null,"клиент оповещен",null,"выдано"]
[null,null,null,null,"мес.","до",null,null,null,null,null,null,null,null,null,null,null,null,"требуется повторный звонок",null,"на хранении"]
["2015-09-16",108487,44251,"1-1-101",6,{"$f":"EDATE(A3,E3)","v":"2016-03-16"},"выдано"]
["2015-09-23",108934,44238,"4-1-301",6,"2016-03-23","на хранении",{"$f":"IF(AND(TODAY()>=F4,G4=$U$2),\"звонок клиенту!\",\"\")","v":"звонок клиенту!"}]
["2015-10-04",109333,44296,"2-2-301",6,"2016-04-04","на хранении","клиент оповещен"]
["2015-10-04",109341,44291,"2-3-301",6,"2016-04-04","выдано",""]
["2015-10-04",109338,44281,"8-14-п",6,"2016-04-04","на хранении"]
["2015-10-06",109426,44161,"8-11-п",6,"2016-04-06","на хранении",""]
["2015-10-06",109441,44601,"8-8-101",6,"2016-04-06","выдано",""]
["2015-10-06",109427,19412144,"8-10-п",6,"2016-04-06","на хранении",""]
["2015-10-10",109492,44831,"7-6-301",6,"2016-04-10","на хранении",""]
["2015-09-20",null,null,null,8,"2016-05-20","на хранении",""]
["2015-09-21",null,null,null,8,{"$f":"EDATE(A13,8)","v":"2016-05-21"},"на хранении",""]
["2015-09-22",null,null,null,null,{"$f":"EDATE(A14,6)","v":"2016-03-22"},"на хранении","клиент оповещен"]
[null,null,null,null,null,null,null,""]
[null,null,null,null,null,null,null,""]
[null,null,null,null,null,null,null,""]
[null,null,null,null,null,null,null,""]
[null,null,null,null,null,null,null,""]
[null,null,null,null,null,null,null,""]
["2015-09-19",null,null,null,null,{"$f":"EDATE(A21,6)","v":"2016-03-19"},"на хранении","звонок клиенту!"]
[null,null,null,null,null,null,null,""]
[null,null,null,null,null,null,null,""]
[null,null,null,null,null,null,null,""]
[null,null,null,null,null,null,null,""]
[null,null,null,null,null,null,null,""]
[null,null,null,null,null,null,null,""]
[null,null,null,null,null,null,null,""]
[null,null,null,null,null,null,null,""]
[null,null,null,null,null,null,null,""]
[null,null,null,null,null,null,null,""]
[null,null,null,null,null,null,null,""]
[null,null,null,null,null,null,null,""]
[null,null,null,null,null,null,null,""]
[null,null,null,null,null,null,null,""]
[null,null,null,null,null,null,null,""]
[null,null,null,null,null,null,null,""]
[null,null,null,null,null,null,null,""]
[null,null,null,null,null,null,null,""]
[null,null,null,null,null,null,null,""]
[null,null,null,null,null,null,null,""]